fUSD/lending_fUSD_20250629
["ID","MTS","AMOUNT","RATE_DAILY","PERIOD"]
[368587772,1751217065725,-682.07,0.00022191,2]
[368587773,1751217065734,-490.0,0.00022191,2]
[368587774,1751217065744,-490.0,0.00022191,2]
[368587775,1751217065753,-490.0,0.00022191,2]
[368587776,1751217065763,-490.0,0.00022191,2]
[368587777,1751217065773,-555.91,0.00022191,2]
[368587778,1751217065783,-490.0,0.00022191,2]
[368587779,1751217065793,-490.0,0.00022191,2]
[368587780,1751217065803,-494.96547124,0.00022191,2]
[368587781,1751217065813,-490.0,0.00022191,2]
[368587782,1751217065823,-490.0,0.00022191,2]
[368587783,1751217065832,-500.0,0.00022191,2]
[368587784,1751217065841,-490.0,0.00022191,2]
[368587785,1751217065851,-493.16899547,0.00022191,2]
[368587786,1751217065861,-630.58,0.00022191,2]
[368587787,1751217065870,-490.0,0.00022191,2]
[368587788,1751217065880,-1691.36,0.00022191,2]
[368587789,1751217065890,-490.0,0.00022191,2]
[368587790,1751217065899,-512.48,0.00022191,2]
[368587791,1751217065909,-1366.77,0.00022191,2]
[368587792,1751217065919,-855.93,0.00022191,2]
[368587793,1751217065929,-855.93,0.00022191,2]
[368587794,1751217065939,-490.0,0.00022191,2]
[368587795,1751217065950,-490.0,0.00022191,2]
[368587796,1751217065959,-490.0,0.00022191,2]
[368587797,1751217065969,-494.58364764,0.00022191,2]
[368587798,1751217065979,-490.0,0.00022191,2]
[368587799,1751217065989,-490.0,0.00022191,2]
[368587800,1751217065999,-490.0,0.00022191,2]
[368587801,1751217066010,-898.22,0.00022191,2]
[368587802,1751217066019,-490.0,0.00022191,2]
[368587803,1751217066029,-490.0,0.00022191,2]
[368587804,1751217066039,-490.0,0.00022191,2]
[368587805,1751217066048,-490.0,0.00022191,2]
[368587806,1751217066058,-504.25627818,0.00022191,2]
[368587807,1751217066068,-490.0,0.00022191,2]
[368587808,1751217066078,-490.0,0.00022191,2]
[368587809,1751217066087,-450.0,0.00022191,2]
[368587810,1751217066097,-490.0,0.00022191,2]
[368587811,1751217066107,-1390.48,0.00022191,2]
[368587812,1751217066117,-796.09,0.00022191,2]
[368587813,1751217066127,-490.0,0.00022191,2]
[368587814,1751217066137,-490.0,0.00022191,2]
[368587815,1751217066147,-490.0,0.00022191,2]
[368587816,1751217066156,-490.0,0.00022191,2]
[368587817,1751217066167,-924.67,0.00022191,2]
[368587818,1751217066176,-941.74,0.00022191,2]
[368587819,1751217066188,-490.0,0.00022191,2]
[368587820,1751217066199,-575.48,0.00022191,2]
[368587821,1751217066208,-2797.67,0.00022191,2]
[368587822,1751217066218,-1675.59,0.00022191,2]
[368587823,1751217066229,-490.0,0.00022191,2]
[368587824,1751217066238,-562.84095231,0.00022191,2]
[368587825,1751217066248,-490.0,0.00022191,2]
[368587826,1751217066259,-1282.48,0.00022191,2]
[368587827,1751217066270,-490.0,0.00022191,2]
[368587828,1751217066281,-2269.94,0.00022191,2]
[368587829,1751217066290,-2570.11,0.00022191,2]
[368587830,1751217066299,-490.0,0.00022191,2]
[368587831,1751217066309,-490.0,0.00022191,2]
[368587832,1751217066318,-490.0,0.00022191,2]
[368587833,1751217066328,-490.0,0.00022191,2]
[368587834,1751217066339,-490.0,0.00022191,2]
[368587835,1751217066349,-666.96,0.00022191,2]
[368587836,1751217066360,-1285.15,0.00022191,2]
[368587837,1751217066370,-806.41,0.00022191,2]
[368587838,1751217066382,-3972.63,0.00022191,2]
[368587839,1751217066391,-490.0,0.00022191,2]
[368587840,1751217066402,-815.53,0.00022191,2]
[368587841,1751217066411,-695.52,0.00022191,2]
[368587842,1751217066421,-490.0,0.00022191,2]
[368587843,1751217066431,-591.96,0.00022191,2]
[368587844,1751217066442,-616.39,0.00022191,2]
[368587845,1751217066452,-1500.0,0.00022191,2]
[368587846,1751217066463,-1430.9,0.00022191,2]
[368587847,1751217066474,-490.0,0.00022191,2]
[368587848,1751217066485,-490.0,0.00022191,2]
[368587849,1751217066495,-1058.88,0.00022191,2]
[368587850,1751217066505,-490.0,0.00022191,2]
[368587851,1751217066516,-490.0,0.00022191,2]
[368587852,1751217066525,-153.743678,0.00022191,2]
[368587853,1751217066535,-490.0,0.00022191,2]
[368587854,1751217066546,-1688.95,0.00022191,2]
[368587855,1751217066556,-490.0,0.00022191,2]
[368587856,1751217066567,-544.19,0.00022191,2]
[368587857,1751217066579,-490.0,0.00022191,2]
[368587858,1751217066588,-490.0,0.00022191,2]
[368587859,1751217066598,-490.0,0.00022191,2]
[368587860,1751217066608,-490.0,0.00022191,2]
[368587861,1751217066618,-490.0,0.00022191,2]
[368587862,1751217066628,-910.73,0.00022191,2]
[368587863,1751217066638,-490.0,0.00022191,2]
[368587864,1751217066650,-490.0,0.00022191,2]
[368587865,1751217066662,-574.2,0.00022191,2]
[368587866,1751217066672,-1021.52,0.00022191,2]
[368587867,1751217066684,-490.0,0.00022191,2]
[368587868,1751217066694,-587.05,0.00022191,2]
[368587869,1751217066706,-559.09192739,0.00022191,2]
[368587870,1751217066716,-490.0,0.00022191,2]
[368587871,1751217066726,-490.0,0.00022191,2]
[368587872,1751217066736,-490.0,0.00022191,2]
[368587873,1751217066746,-490.0,0.00022191,2]
[368587874,1751217067042,-2516.65,0.00022191,2]
[368587875,1751217067052,-490.0,0.00022191,2]
[368587876,1751217067061,-490.0,0.00022191,2]
[368587877,1751217067070,-1548.48,0.00022191,2]
[368587878,1751217067079,-490.0,0.00022191,2]
[368587879,1751217067089,-490.0,0.00022191,2]
[368587880,1751217067099,-490.0,0.00022191,2]
[368587881,1751217067109,-490.0,0.00022191,2]
[368587882,1751217067118,-774.64,0.00022191,2]
[368587883,1751217067127,-797.96,0.00022191,2]
[368587884,1751217067138,-490.0,0.00022191,2]
[368587885,1751217067147,-490.0,0.00022191,2]
[368587886,1751217067156,-490.0,0.00022191,2]
[368587887,1751217067166,-2344.02,0.00022191,2]
[368587888,1751217067175,-506.25,0.00022191,2]
[368587889,1751217067190,-152.95630553,0.00022191,2]
[368587890,1751217067199,-490.0,0.00022191,2]
[368587891,1751217067209,-490.0,0.00022191,2]
[368587892,1751217067218,-637.3,0.00022191,2]
[368587893,1751217067227,-652.71,0.00022191,2]
[368587894,1751217067236,-490.0,0.00022191,2]
[368587895,1751217067245,-490.0,0.00022191,2]
[368587896,1751217067255,-1103.42,0.00022191,2]
[368587897,1751217067266,-490.0,0.00022191,2]
[368587898,1751217067276,-490.0,0.00022191,2]
[368587899,1751217067286,-490.0,0.00022191,2]
[368587900,1751217067295,-2314.66,0.00022191,2]
[368587901,1751217067304,-2307.19,0.00022191,2]
[368587902,1751217067314,-769.68,0.00022191,2]
[368587903,1751217067323,-490.0,0.00022191,2]
[368587904,1751217067332,-490.0,0.00022191,2]
[368587905,1751217067342,-490.0,0.00022191,2]
[368587906,1751217067353,-3151.6,0.00022191,2]
[368587907,1751217067362,-490.0,0.00022191,2]
[368587908,1751217067372,-490.0,0.00022191,2]
[368587909,1751217067382,-490.0,0.00022191,2]
[368587910,1751217067392,-490.0,0.00022191,2]
[368587911,1751217067401,-490.0,0.00022191,2]
[368587912,1751217067410,-490.0,0.00022191,2]
[368587913,1751217067420,-2528.45,0.00022191,2]
[368587914,1751217067430,-1640.46,0.00022191,2]
[368587915,1751217067439,-490.0,0.00022191,2]
[368587916,1751217067449,-490.0,0.00022191,2]
[368587917,1751217067458,-490.0,0.00022191,2]
[368587918,1751217067468,-490.0,0.00022191,2]
[368587919,1751217067477,-1201.47,0.00022191,2]
[368587920,1751217067487,-490.0,0.00022191,2]
[368587921,1751217067496,-490.0,0.00022191,2]
[368587922,1751217067505,-2038.72,0.00022191,2]
[368587923,1751217067515,-490.0,0.00022191,2]
[368587924,1751217067524,-936.94,0.00022191,2]
[368587925,1751217067534,-595.62,0.00022191,2]
[368587926,1751217067543,-490.0,0.00022191,2]
[368587927,1751217067552,-1053.53,0.00022191,2]
[368587928,1751217067561,-2242.72,0.00022191,2]
[368587929,1751217067570,-496.58282194,0.00022191,2]
[368587930,1751217067579,-531.69,0.00022191,2]
[368587931,1751217067588,-490.0,0.00022191,2]
[368587932,1751217067598,-490.0,0.00022191,2]
[368587933,1751217067608,-490.0,0.00022191,2]
[368587934,1751217067617,-1305.14,0.00022191,2]
[368587935,1751217067626,-1387.9,0.00022191,2]
[368587936,1751217067636,-490.0,0.00022191,2]
[368587937,1751217067645,-490.0,0.00022191,2]
[368587938,1751217067655,-1147.11,0.00022191,2]
[368587939,1751217067665,-490.0,0.00022191,2]
[368587940,1751217067674,-490.0,0.00022191,2]
[368587941,1751217067683,-490.0,0.00022191,2]
[368587942,1751217067692,-490.0,0.00022191,2]
[368587943,1751217067701,-490.0,0.00022191,2]
[368587944,1751217067710,-244.59800318,0.00022191,2]
[368587945,1751217067719,-490.0,0.00022191,2]
[368587946,1751217067728,-816.15,0.00022191,2]
[368587947,1751217067738,-490.0,0.00022191,2]
[368587948,1751217067747,-490.0,0.00022191,2]
[368587949,1751217067756,-490.0,0.00022191,2]
[368587950,1751217067765,-490.0,0.00022191,2]
[368587951,1751217067775,-490.0,0.00022191,2]
[368587952,1751217067784,-770.18,0.00022191,2]
[368587953,1751217067794,-490.0,0.00022191,2]
[368587954,1751217067804,-490.0,0.00022191,2]
[368587955,1751217067817,-490.0,0.00022191,2]
[368587956,1751217067826,-490.0,0.00022191,2]
[368587957,1751217067836,-571.85,0.00022191,2]
[368587958,1751217067846,-490.0,0.00022191,2]
[368587959,1751217067855,-548.66,0.00022191,2]
[368587960,1751217067865,-490.0,0.00022191,2]
[368587961,1751217067875,-490.0,0.00022191,2]
[368587962,1751217067886,-490.0,0.00022191,2]
[368587963,1751217067896,-490.0,0.00022191,2]
[368587964,1751217067906,-964.36,0.00022191,2]
[368587965,1751217067916,-490.0,0.00022191,2]
[368587966,1751217067926,-568.18,0.00022191,2]
[368587967,1751217067935,-490.0,0.00022191,2]
[368587968,1751217067945,-490.0,0.00022191,2]
[368587969,1751217067955,-490.0,0.00022191,2]
[368587970,1751217067964,-2138.4,0.00022191,2]
[368587971,1751217067974,-509.61,0.00022191,2]
[368587972,1751217067983,-490.0,0.00022191,2]
[368587973,1751217067992,-1379.63,0.00022191,2]
[368587974,1751217068002,-490.0,0.00022191,2]
[368587975,1751217068013,-2136.25,0.00022191,2]
[368587976,1751217068022,-490.0,0.00022191,2]
[368587977,1751217068031,-490.0,0.00022191,2]
[368587978,1751217068041,-490.0,0.00022191,2]
[368587979,1751217068051,-705.33,0.00022191,2]
[368587980,1751217068062,-169.13029899,0.00022191,2]
[368587981,1751217068071,-490.0,0.00022191,2]
[368587982,1751217068081,-490.0,0.00022191,2]
[368587983,1751217068091,-813.82,0.00022191,2]
[368587984,1751217068101,-490.0,0.00022191,2]
[368587985,1751217068110,-490.0,0.00022191,2]
[368587986,1751217068120,-1538.17,0.00022191,2]
[368587987,1751217068130,-490.0,0.00022191,2]
[368587988,1751217068140,-490.0,0.00022191,2]
[368587989,1751217068149,-490.0,0.00022191,2]
[368587990,1751217068158,-2746.54,0.00022191,2]
[368587991,1751217068168,-490.0,0.00022191,2]
[368587992,1751217068178,-490.0,0.00022191,2]
[368587993,1751217068188,-490.0,0.00022191,2]
[368587994,1751217068198,-2912.37,0.00022191,2]
[368587995,1751217068207,-490.0,0.00022191,2]
[368587996,1751217068217,-1733.29,0.00022191,2]
[368587997,1751217068227,-490.0,0.00022191,2]
[368587998,1751217068236,-2062.26,0.00022191,2]
[368587999,1751217068246,-1362.74,0.00022191,2]
[368588000,1751217068255,-490.0,0.00022191,2]
[368588001,1751217068267,-490.0,0.00022191,2]
[368588002,1751217068277,-490.0,0.00022191,2]
[368588003,1751217068287,-490.0,0.00022191,2]
[368588004,1751217068296,-490.0,0.00022191,2]
[368588005,1751217068306,-490.0,0.00022191,2]
[368588006,1751217068316,-490.0,0.00022191,2]
[368588007,1751217068325,-490.0,0.00022191,2]
[368588008,1751217068334,-2136.61,0.00022191,2]
[368588009,1751217068344,-490.0,0.00022191,2]
[368588010,1751217068354,-490.0,0.00022191,2]
[368588011,1751217068366,-847.6,0.00022191,2]
[368588012,1751217068376,-490.0,0.00022191,2]
[368588013,1751217068386,-491.42415589,0.00022191,2]
[368588014,1751217068397,-2592.99,0.00022191,2]
[368588015,1751217068407,-1369.09,0.00022191,2]
[368588016,1751217068417,-490.0,0.00022191,2]
[368588017,1751217068427,-490.0,0.00022191,2]
[368588018,1751217068436,-490.0,0.00022191,2]
[368588019,1751217068445,-1182.97,0.00022191,2]
[368588020,1751217068454,-490.0,0.00022191,2]
[368588021,1751217068463,-745.15,0.00022191,2]
[368588022,1751217068472,-1436.66,0.00022191,2]
[368588023,1751217068481,-490.0,0.00022191,2]
[368588024,1751217068490,-1336.44,0.00022191,2]
[368588025,1751217068499,-490.0,0.00022191,2]
[368588026,1751217068508,-500.0,0.00022191,2]
[368588027,1751217068517,-1922.98,0.00022191,2]
[368588028,1751217068527,-490.0,0.00022191,2]
[368588029,1751217068536,-490.0,0.00022191,2]
[368588030,1751217068546,-855.13,0.00022191,2]
[368588031,1751217068555,-490.0,0.00022191,2]
[368588032,1751217068564,-490.0,0.00022191,2]
[368588033,1751217068574,-1037.77,0.00022191,2]
[368588034,1751217068583,-490.0,0.00022191,2]
[368588035,1751217068592,-490.0,0.00022191,2]
[368588036,1751217068601,-1023.78,0.00022191,2]
[368588037,1751217068611,-3088.23,0.00022191,2]
[368588038,1751217068620,-756.84,0.00022191,2]
[368588039,1751217068630,-490.0,0.00022191,2]
[368588040,1751217068640,-490.0,0.00022191,2]
[368588041,1751217068650,-490.0,0.00022191,2]
[368588042,1751217068660,-490.0,0.00022191,2]
[368588043,1751217068671,-1388.92,0.00022191,2]
[368588044,1751217068681,-490.0,0.00022191,2]
[368588045,1751217068690,-1515.92,0.00022191,2]
[368588046,1751217068699,-490.0,0.00022191,2]
[368588047,1751217068707,-951.09,0.00022191,2]
[368588048,1751217068716,-653.29,0.00022191,2]
[368588049,1751217068725,-490.0,0.00022191,2]
[368588050,1751217068734,-1219.19,0.00022191,2]
[368588051,1751217068743,-524.75976139,0.00022191,2]
[368588052,1751217068752,-490.0,0.00022191,2]
[368588053,1751217068760,-499.57570899,0.00022191,2]
[368588054,1751217068769,-1197.36,0.00022191,2]
[368588055,1751217068778,-490.0,0.00022191,2]
[368588056,1751217068787,-490.0,0.00022191,2]
[368588057,1751217068797,-739.09,0.00022191,2]
[368588058,1751217068806,-490.0,0.00022191,2]
[368588059,1751217068815,-490.0,0.00022191,2]
[368588060,1751217068825,-490.0,0.00022191,2]
[368588061,1751217068834,-667.93,0.00022191,2]
[368588062,1751217068843,-518.8,0.00022191,2]
[368588063,1751217068852,-3077.76,0.00022191,2]
[368588064,1751217068862,-2292.88,0.00022191,2]
[368588065,1751217068871,-490.0,0.00022191,2]
[368588066,1751217068881,-650.9,0.00022191,2]
[368588067,1751217068890,-309.01120216,0.00022191,2]
[368588068,1751217068899,-923.34,0.00022191,2]
[368588069,1751217068908,-558.57,0.00022191,2]
[368588070,1751217068918,-490.0,0.00022191,2]
[368588071,1751217068928,-638.45,0.00022191,2]
[368588072,1751217068937,-491.28,0.00022191,2]
[368588073,1751217068947,-611.85,0.00022191,2]
[368588074,1751217068956,-490.0,0.00022191,2]
[368588075,1751217068965,-490.0,0.00022191,2]
[368588076,1751217068975,-490.0,0.00022191,2]
[368588077,1751217068984,-490.0,0.00022191,2]
[368588078,1751217068993,-490.0,0.00022191,2]
[368588079,1751217069003,-725.1,0.00022191,2]
[368588080,1751217069012,-495.28,0.00022191,2]
[368588081,1751217069021,-1706.53,0.00022191,2]
[368588082,1751217069031,-618.03,0.00022191,2]
[368588083,1751217069040,-490.0,0.00022191,2]
[368588084,1751217069049,-638.14,0.00022191,2]
[368588085,1751217069059,-1664.85,0.00022191,2]
[368588086,1751217069068,-582.18,0.00022191,2]
[368588087,1751217069077,-490.0,0.00022191,2]
[368588088,1751217069086,-841.61,0.00022191,2]
[368588089,1751217069097,-1297.31,0.00022191,2]
[368588090,1751217069107,-490.0,0.00022191,2]
[368588091,1751217069118,-879.52,0.00022191,2]
[368588092,1751217069127,-463.28,0.00022191,2]
[368588093,1751217069137,-490.0,0.00022191,2]
[368588094,1751217069146,-1860.97,0.00022191,2]
[368588095,1751217069155,-490.0,0.00022191,2]
[368588096,1751217069164,-898.81,0.00022191,2]
[368588097,1751217069173,-490.0,0.00022191,2]
[368588098,1751217069183,-1238.14,0.00022191,2]
[368588099,1751217069195,-493.22167133,0.00022191,2]
[368588100,1751217069205,-3706.71,0.00022191,2]
[368588101,1751217069214,-492.43576328,0.00022191,2]
[368588102,1751217069223,-3069.39,0.00022191,2]
[368588103,1751217069232,-2474.37,0.00022191,2]
[368588104,1751217069242,-708.25,0.00022191,2]
[368588105,1751217069251,-490.0,0.00022191,2]
[368588106,1751217069261,-634.04616981,0.00022191,2]
[368588107,1751217069271,-1282.8,0.00022191,2]
[368588108,1751217069282,-490.0,0.00022191,2]
[368588109,1751217069291,-490.0,0.00022191,2]
[368588110,1751217069411,-490.0,0.00022191,2]
[368588111,1751217069421,-490.0,0.00022191,2]
[368588112,1751217069431,-490.0,0.00022191,2]
[368588113,1751217069440,-490.0,0.00022191,2]
[368588114,1751217069449,-490.0,0.00022191,2]
[368588115,1751217069458,-1972.13,0.00022191,2]
[368588116,1751217069467,-2807.25,0.00022191,2]
[368588117,1751217069477,-490.0,0.00022191,2]
[368588118,1751217069486,-490.0,0.00022191,2]
[368588119,1751217069495,-490.0,0.00022191,2]
[368588120,1751217069503,-521.92,0.00022191,2]
[368588121,1751217069513,-490.0,0.00022191,2]
[368588122,1751217069522,-1387.03,0.00022191,2]
[368588123,1751217069531,-1213.41,0.00022191,2]
[368588124,1751217069540,-1846.0,0.00022191,2]
[368588125,1751217069549,-2424.69,0.00022191,2]
[368588126,1751217069558,-490.0,0.00022191,2]
[368588127,1751217069567,-1775.0,0.00022191,2]
[368588128,1751217069576,-3033.51,0.00022191,2]
[368588129,1751217069585,-490.0,0.00022191,2]
[368588130,1751217069594,-447.6,0.00022191,2]
[368588131,1751217069603,-563.36433521,0.00022191,2]
[368588132,1751217069612,-490.0,0.00022191,2]
[368588133,1751217069622,-490.0,0.00022191,2]
[368588134,1751217069631,-1933.8,0.00022191,2]
[368588135,1751217069642,-490.0,0.00022191,2]
[368588136,1751217069651,-490.0,0.00022191,2]
[368588137,1751217069659,-490.0,0.00022191,2]
[368588138,1751217069668,-490.0,0.00022191,2]
[368588139,1751217069678,-776.03,0.00022191,2]
[368588140,1751217069687,-490.0,0.00022191,2]
[368588141,1751217069696,-490.0,0.00022191,2]
[368588142,1751217069705,-184.68740155,0.00022191,2]
[368588143,1751217069714,-490.0,0.00022191,2]
[368588144,1751217069723,-1944.95,0.00022191,2]
[368588145,1751217069732,-490.0,0.00022191,2]
[368588146,1751217069741,-490.0,0.00022191,2]
[368588147,1751217069750,-490.0,0.00022191,2]
[368588148,1751217069759,-490.0,0.00022191,2]
[368588149,1751217069768,-490.0,0.00022191,2]
[368588150,1751217069778,-496.28081116,0.00022191,2]
[368588151,1751217069787,-671.51,0.00022191,2]
[368588152,1751217069796,-1479.99,0.00022191,2]
[368588153,1751217069806,-2032.21,0.00022191,2]
[368588154,1751217069815,-490.0,0.00022191,2]
[368588155,1751217069824,-490.0,0.00022191,2]
[368588156,1751217069833,-2878.06,0.00022191,2]
[368588157,1751217069842,-490.0,0.00022191,2]
[368588158,1751217069851,-490.0,0.00022191,2]
[368588159,1751217069861,-668.78,0.00022191,2]
[368588160,1751217069870,-490.0,0.00022191,2]
[368588161,1751217069879,-490.0,0.00022191,2]
[368588162,1751217069889,-490.0,0.00022191,2]
[368588163,1751217069898,-490.0,0.00022191,2]
[368588164,1751217069907,-490.0,0.00022191,2]
[368588165,1751217069917,-1499.23,0.00022191,2]
[368588166,1751217069927,-490.0,0.00022191,2]
[368588167,1751217069936,-490.0,0.00022191,2]
[368588168,1751217069945,-490.0,0.00022191,2]
[368588169,1751217069955,-801.34,0.00022191,2]
[368588170,1751217069964,-561.29,0.00022191,2]
[368588171,1751217069973,-490.0,0.00022191,2]
[368588172,1751217069983,-1434.64,0.00022191,2]
[368588173,1751217069992,-490.0,0.00022191,2]
[368588174,1751217070002,-417.91706823,0.00022191,2]
[368588175,1751217070011,-490.0,0.00022191,2]
[368588176,1751217070020,-1361.0,0.00022191,2]
[368588177,1751217070029,-490.0,0.00022191,2]
[368588178,1751217070038,-490.0,0.00022191,2]
[368588179,1751217070047,-490.0,0.00022191,2]
[368588180,1751217070057,-490.0,0.00022191,2]
[368588181,1751217070066,-490.0,0.00022191,2]
[368588182,1751217070075,-511.38,0.00022191,2]
[368588183,1751217070085,-2888.18,0.00022191,2]
[368588184,1751217070094,-1259.8,0.00022191,2]
[368588185,1751217070103,-490.0,0.00022191,2]
[368588186,1751217070112,-490.0,0.00022191,2]
[368588187,1751217070122,-490.0,0.00022191,2]
[368588188,1751217070131,-1138.06,0.00022191,2]
[368588189,1751217070142,-490.0,0.00022191,2]
[368588190,1751217070151,-490.0,0.00022191,2]
[368588191,1751217070161,-490.0,0.00022191,2]
[368588192,1751217070171,-490.0,0.00022191,2]
[368588193,1751217070180,-490.0,0.00022191,2]
[368588194,1751217070190,-490.0,0.00022191,2]
[368588195,1751217070202,-490.0,0.00022191,2]
[368588196,1751217070212,-497.78,0.00022191,2]
[368588197,1751217070221,-526.57,0.00022191,2]
[368588198,1751217070230,-490.0,0.00022191,2]
[368588199,1751217070240,-920.53,0.00022191,2]
[368588200,1751217070249,-490.0,0.00022191,2]
[368588201,1751217070258,-490.0,0.00022191,2]
[368588202,1751217070269,-851.89,0.00022191,2]
[368588203,1751217070279,-681.84,0.00022191,2]
[368588204,1751217070288,-490.0,0.00022191,2]
[368588205,1751217070299,-490.0,0.00022191,2]
[368588206,1751217070309,-322.22021477,0.00022191,2]
[368588207,1751217070319,-490.0,0.00022191,2]
[368588208,1751217070330,-490.0,0.00022191,2]
[368588209,1751217070339,-490.0,0.00022191,2]
[368588210,1751217070349,-1414.72,0.00022191,2]
[368588211,1751217070359,-490.0,0.00022191,2]
[368588212,1751217070370,-490.0,0.00022191,2]
[368588213,1751217070379,-490.0,0.00022191,2]
[368588214,1751217070389,-647.57,0.00022191,2]
[368588215,1751217070399,-490.0,0.00022191,2]
[368588216,1751217070408,-490.0,0.00022191,2]
[368588217,1751217070418,-490.0,0.00022191,2]
[368588218,1751217070427,-1978.12,0.00022191,2]
[368588219,1751217070436,-490.0,0.00022191,2]
[368588220,1751217070445,-490.0,0.00022191,2]
[368588221,1751217070455,-490.0,0.00022191,2]
[368588222,1751217070464,-490.0,0.00022191,2]
[368588223,1751217070473,-620.75,0.00022191,2]
[368588224,1751217070483,-1626.15,0.00022191,2]
[368588225,1751217070492,-1759.4,0.00022191,2]
[368588226,1751217070501,-510.41,0.00022191,2]
[368588227,1751217070510,-1206.87,0.00022191,2]
[368588228,1751217070520,-490.0,0.00022191,2]
[368588229,1751217070530,-490.0,0.00022191,2]
[368588230,1751217070539,-2181.49,0.00022191,2]
[368588231,1751217070548,-490.0,0.00022191,2]
[368588232,1751217070556,-2392.37,0.00022191,2]
[368588233,1751217070567,-931.78,0.00022191,2]
[368588234,1751217070577,-490.0,0.00022191,2]
[368588235,1751217070586,-490.0,0.00022191,2]
[368588236,1751217070596,-490.0,0.00022191,2]
[368588237,1751217070605,-1150.51,0.00022191,2]
[368588238,1751217070615,-490.0,0.00022191,2]
[368588239,1751217070626,-1134.32,0.00022191,2]
[368588240,1751217070635,-1101.6,0.00022191,2]
[368588241,1751217070644,-835.16,0.00022191,2]
[368588242,1751217070654,-490.0,0.00022191,2]
[368588243,1751217070663,-490.0,0.00022191,2]
[368588244,1751217070675,-490.0,0.00022191,2]
[368588245,1751217070684,-490.0,0.00022191,2]
[368588246,1751217070695,-490.0,0.00022191,2]
[368588247,1751217070706,-714.02,0.00022191,2]
[368588248,1751217070715,-1351.41,0.00022191,2]
[368588249,1751217070725,-490.0,0.00022191,2]
[368588250,1751217070735,-490.0,0.00022191,2]
[368588251,1751217070746,-490.0,0.00022191,2]
[368588252,1751217070756,-490.0,0.00022191,2]
[368588253,1751217070766,-1125.1,0.00022191,2]
[368588254,1751217070774,-1305.5,0.00022191,2]
[368588255,1751217070784,-490.0,0.00022191,2]
[368588256,1751217070793,-490.0,0.00022191,2]
[368588257,1751217070802,-490.0,0.00022191,2]
[368588258,1751217070811,-490.0,0.00022191,2]
[368588259,1751217070820,-490.0,0.00022191,2]
[368588260,1751217070830,-490.0,0.00022191,2]
[368588261,1751217070839,-490.0,0.00022191,2]
[368588262,1751217070848,-637.52,0.00022191,2]
[368588263,1751217070857,-490.0,0.00022191,2]
[368588264,1751217070867,-490.0,0.00022191,2]
[368588265,1751217070876,-490.0,0.00022191,2]
[368588266,1751217070884,-521.7134462,0.00022191,2]
[368588267,1751217070894,-1718.41,0.00022191,2]
[368588268,1751217070903,-656.21,0.00022191,2]
[368588269,1751217070912,-490.0,0.00022191,2]
[368588270,1751217070920,-490.0,0.00022191,2]
[368588271,1751217070929,-537.2,0.00022191,2]